[Event "87th Tata Steel Masters 2025"]
[Site "Wijk aan Zee"]
[Date "2025.01.25"]
[Round "7.1"]
[White "Wei, Yi"]
[Black "Mendonca, Leon Luke"]
[Result "1/2-1/2"]
[ECO "C77"]
[WhiteElo "2751"]
[BlackElo "2639"]
[Annotator "Stockfish 17 - Chessbase"]
[PlyCount "80"]
[EventDate "2025.??.??"]
[TimeControl "60"]

{[%evp 16,80,2,8,33,22,36,39,23,10,28,6,-6,-35,-31,-13,-34,-16,-31,-33,-22,-25,-8,-35,-35,-33,-7,-34,0,-10,14,0,0,0,22,0,0,0,15,12,33,22,32,27,25,30,55,5,19,15,25,2,0,0,25,0,0,0,0,0,18,9,20,0,0,0,28]} 1. e4 {[%eval 18,0] [%emt 0:00:00]} e5 {[%eval 21,0] [%emt 0:00:00]} 2. Nf3 {[%eval 13,0] [%emt 0:00:00]} Nc6 {[%eval 17,0] [%emt 0:00:00]} 3. Bb5 {[%eval 8,0] [%emt 0:00:00][%cal Yf1b5,Yb5a4,Ya4b3][%mdl 32]} a6 {[%eval 21,0] [%emt 0:00:00]} 4. Ba4 {[%eval 27,0] [%emt 0:00:00]} Nf6 {[%eval 18,0] [%emt 0:00:00]} 5. Nc3 {[%eval 0,0] [%emt 0:00:00]} b5 {[%eval 19,0] [%emt 0:00:00]} 6. Bb3 {[%eval 1,0] [%emt 0:00:00]} Be7 {[%eval 13,0] [%emt 0:00:00]} 7. d3 {[%eval 1,0] [%emt 0:00:00]} d6 {[%eval 21,0] [%emt 0:00:00]} 8. a3 {[%eval 23,0] [%emt 0:00:00]} O-O {[%eval 22,0] [%emt 0:00:00]} 9. O-O $1 {[%eval 19,0] [%emt 0:00:00] 9.0-0 scores better than 9.Nd5.} h6 {[%eval 31,0] [%emt 0:00:00] C77: Ruy Lopez: 3...a6 4 Ba4 Nf6, unusual lines.} (9... Rb8 10. h3 h6 11. Be3 Re8 12. Nd2 Be6 13. Bxe6 fxe6 14. Ne2 d5 15. c3 Qd7 16. Qc2 Rbd8 17. Rad1 Bd6 18. d4 exd4 19. cxd4 dxe4 20. Nxe4 Nxe4 21. Qxe4 Ne7 22. Nf4 Nf5 23. Nd3 a5 24. Rfe1 {Petrosyan,M (2625)-Deac,B (2680) Jermuk ARM 2024 ½-½ (40)}) (9... Bb7 10. Bg5 Nd7 11. Qd2 Nd4 12. Bxe7 Nxf3+ 13. gxf3 Qxe7 14. Nd5 Bxd5 15. Bxd5 Rad8 16. f4 Qh4 17. fxe5 dxe5 18. f4 Nf6 19. Bb3 Nxe4 20. Qg2 Nc5 21. Ba2 exf4 22. Rae1 Kh8 23. Re5 Na4 24. Rf5 {Postnikov,A (2187)-Rodriguez Rivero,J (2144) chess.com INT 2024 1-0 (62)}) 10. Be3 {[%eval 23,0] [%emt 0:00:00]} Be6 {[%eval 43,0] [%emt 0:00:00]} 11. Nd5 $146 {[%eval 32,0] [%emt 0:00:00]} (11. Rc1 Qd7 12. d4 exd4 13. Bxd4 Bg4 14. Be3 Rad8 15. h3 Bh5 16. Bf4 Rfe8 17. Re1 Bf8 18. Qd3 Bxf3 19. Qxf3 Nd4 20. Qd3 c5 21. Bd5 Ne6 22. Bg3 c4 23. Qd2 Nc5 24. f3 Be7 25. Rcd1 Nh5 {Beerdsen,T (2196)-Majhi,A (2128) Rotterdam 2014 ½-½ (39)}) 11... Qd7 {[%eval 31,0] [%emt 0:00:00] White is slightly better.} 12. Rc1 $146 {[%eval 36,0] [%emt 0:00:00]} (12. h3 Bd8 13. c4 bxc4 14. Nxf6+ Bxf6 15. Ba4 d5 16. exd5 Qxd5 17. dxc4 Qxd1 18. Rfxd1 {½-½ Le,Q (2709)-Caruana,F (2835) Chess24 Banter Blitz Cup Final 2020 (2.2)}) 12... Bd8 {[%eval 33,0] [%emt 0:00:00]} 13. c4 {[%eval 6,0] [%emt 0:00:00]} Na5 {[%eval 6,0] [%emt 0:00:00]} 14. Ba2 {[%eval 31,0] [%emt 0:00:00]} bxc4 {[%eval 4,0] [%emt 0:00:00]} 15. Nxf6+ {[%eval 39,0] [%emt 0:00:00]} Bxf6 {[%eval 13,0] [%emt 0:00:00]} 16. dxc4 {[%eval 25,0] [%emt 0:00:00]} c5 {[%eval 29,0] [%emt 0:00:00]} 17. b4 {[%eval 31,0] [%emt 0:00:00]} cxb4 {[%eval 31,0] [%emt 0:00:00]} 18. axb4 {[%eval 29,0] [%emt 0:00:00]} Nc6 {[%eval 3,0] [%emt 0:00:00]} 19. Rb1 {[%eval 5,0] [%emt 0:00:50]} Rfc8 {[%eval 51,0]} 20. Qa4 {[%eval 41,0]} Qb7 {[%eval 15,0]} 21. Rfd1 {[%eval 53,0]} Be7 {[%eval 23,0]} 22. h3 {[%eval 26,0]} Rcb8 {[%eval 11,0][%cal Rc6b4]} 23. Bd2 {[%eval 12,0]} Rc8 {[%eval 11,0]} 24. Be3 {[%eval 28,0]} Rcb8 {[%eval 12,0][%cal Rc6b4]} 25. Bd2 {[%eval 14,0]} Rc8 {[%eval 13,0]} 26. Qc2 {[%eval 11,0]} Qc7 {[%eval 16,0]} 27. Rdc1 {[%eval 6,0]} a5 {[%eval 2,0]} 28. b5 {[%eval 2,0]} Nb4 {[%eval 4,0]} 29. Bxb4 {[%eval 0,0]} axb4 {[%eval 0,0]} 30. Rxb4 {[%eval 0,0]} Qc5 $6 {[%eval 63,0] Inaccuracy. Bd8 was best.} (30... Bd8) 31. Ra4 $6 {[%eval 0,0] Inaccuracy. Rb2 was best.} (31. Rbb1 $14) (31. Rb2 Bd8) 31... Bd8 {[%eval 0,0]} 32. Rxa8 {[%eval 0,0]} Rxa8 {[%eval 0,0]} 33. Bb3 {[%eval 25,0]} Bb6 {[%eval 8,0]} 34. Rb1 {[%eval 36,0]} Rc8 {[%eval 0,0][%cal Re6c4]} 35. Rc1 {[%eval 8,0]} Ra8 {[%eval 11,0] The position is equal.} 36. Ne1 {[%eval 13,0]} Ra3 {[%eval 19,0][%cal Ya3b3] [#] ...Rxb3! is the strong threat.} 37. Rb1 {[%eval 32,0]} Qd4 {[%eval 0,0]} 38. Nf3 {[%eval 15,0]} Qc5 {[%eval 15,0]} 39. Ne1 {[%eval 37,0]} Qd4 {[%eval 0,0]} 40. Nf3 {[%eval 0,0]} Qc5 {[%eval 0,0] Weighted Error Value: White=0.11 (very precise) /Black=0.10 (very precise) Mistake: 	White=1 	--- Inaccurate: 	White=3 	Black=2 OK: 	White=8 	Black=15 Best: 	--- 	Black=1 Precisão Stockfish 17: Brancas 96% Pretas 96% Precisão Chess.com: Branas 97.1% Pretas 97.3%} 1/2-1/2

[Event "87th Tata Steel Masters 2025"]
[Site "Wijk aan Zee"]
[Date "2025.01.25"]
[Round "7.2"]
[White "Caruana, Fabiano"]
[Black "Sarana, Alexey"]
[Result "1/2-1/2"]
[ECO "E05"]
[WhiteElo "2803"]
[BlackElo "2677"]
[Annotator "Stockfish 17 - Chessbase"]
[PlyCount "121"]
[EventDate "2025.??.??"]
[TimeControl "60"]

{[%evp 21,121,10,10,4,3,0,0,0,14,0,10,0,12,12,8,16,49,48,51,50,51,65,60,64,43,37,46,36,46,29,29,29,50,29,49,41,31,44,60,50,68,72,72,45,43,40,62,60,64,75,66,51,64,46,46,46,45,45,52,34,31,25,54,31,46,30,39,37,25,39,28,29,31,23,22,21,28,22,31,18,53,26,26,26,33,33,39,27,36,27,26,25,27,27,32,17,20,16,17,16,25,0]} 1. c4 {[%eval 12,0] [%emt 0:00:00]} e6 {[%eval 25,0] [%emt 0:00:00]} 2. g3 {[%eval 14,0] [%emt 0:00:00]} Nf6 {[%eval 15,0] [%emt 0:00:00]} 3. Bg2 {[%eval 15,0] [%emt 0:00:00]} d5 {[%eval 14,0] [%emt 0:00:00]} 4. Nf3 {[%eval 13,0] [%emt 0:00:00]} Be7 {[%eval 24,0] [%emt 0:00:00]} 5. O-O {[%eval 1,0] [%emt 0:00:00]} O-O {[%eval 2,0] [%emt 0:00:00]} 6. d4 {[%eval 2,0] [%emt 0:00:00]} dxc4 {[%eval 16,0] [%emt 0:00:00]} 7. Qc2 {[%eval 16,0] [%emt 0:00:00]} a6 {[%eval 2,0] [%emt 0:00:00]} 8. a4 {[%eval 21,0] [%emt 0:00:00]} Bd7 {[%eval 19,0] [%emt 0:00:00]} 9. Qxc4 {[%eval 18,0] [%emt 0:00:00]} Bc6 {[%eval 21,0] [%emt 0:00:00]} 10. Bg5 {[%eval 22,0] [%emt 0:00:00]} Nbd7 {[%eval 21,0] [%emt 0:00:00]} 11. Nc3 {[%eval 25,0] [%emt 0:00:00]} h6 {[%eval 21,0] [%emt 0:00:00]} 12. Bf4 {[%eval 7,0] [%emt 0:00:00] E05: Open Catalan: 5 Nf3 Be7.} Bd6 {[%eval 11,0] [%emt 0:00:00]} 13. Qd3 {[%eval 1,0] [%emt 0:00:00]} (13. Ne5 Bxg2 14. Kxg2 Nb6 15. Qb3 a5 16. Rfd1 Nfd5 17. Nxd5 exd5 18. Nd3 Bxf4 19. Nxf4 c6 20. Rac1 Rb8 21. h4 Re8 22. e3 Nc4 23. Qc2 Nd6 24. Rb1 Ra8 25. b4 axb4 26. Rxb4 Qd7 27. Rdb1 Re7 {Vachier Lagrave,M (2804)-Dominguez Perez,L (2739) Doha 2016 ½-½ (48)}) (13. Be5 Bxf3 14. Bxf6 Nxf6 15. Bxf3 c6 16. e4 e5 17. Rfd1 Qb6 18. d5 Rac8 19. dxc6 Rxc6 20. Qe2 Qb3 21. Rd3 Qc4 22. Rad1 Bb4 23. Nd5 Nxd5 24. exd5 Rf6 25. Qxe5 Qc2 26. Qe2 Qxa4 27. d6 Re6 {Mena,M (1971)-Papp,B (2278) chess.com INT 2024 1-0 (73)}) 13... Bxf4 {[%eval 4,0] [%emt 0:00:00]} 14. gxf4 {[%eval 11,0] [%emt 0:00:00][%cal Yg3f4,Yf4e5][%mdl 32] The position is equal.} a5 {[%eval 21,0] [%emt 0:00:00]} 15. Kh1 {[%eval 19,0] [%emt 0:00:00]} Ra6 $146 {[%eval 4,0] [%emt 0:00:00]} (15... Bxf3 16. Bxf3 c6 17. Rg1 Kh8 18. e4 Qe7 19. Rg3 Rad8 20. Rag1 Rg8 21. e5 Nh7 22. Qe3 Nb6 23. Be4 Qb4 24. Bxh7 Kxh7 25. Ne4 Qe7 26. f5 {1-0 (26) Abasov,N (2632)-Caruana,F (2782) Baku AZE 2023}) 16. Rg1 {[%eval 31,0] [%emt 0:00:00]} Rb6 {[%eval 37,0] [%emt 0:00:00]} 17. Ne5 {[%eval 25,0] [%emt 0:00:00]} Nxe5 {[%eval 15,0] [%emt 0:00:00]} 18. fxe5 {[%eval 26,0] [%emt 0:00:00]} Ng4 {[%eval 8,0] [%emt 0:00:00][%cal Rg4f2] [#]} 19. Qg3 {[%eval 78,0] And now Bxc6 would win.} Qxd4 {[%eval 79,0] [%emt 0:00:00]} 20. Bxc6 {[%eval 88,0]} Nxf2+ {[%eval 73,0] [%emt 0:00:00]} 21. Kg2 {[%eval 82,0]} bxc6 {[%eval 75,0]} 22. Qxf2 {[%eval 81,0]} Qxe5 {[%eval 73,0]} (22... Qxf2+ 23. Kxf2 Rxb2 24. Rg4 $18 (24. Ne4 Rd8 $16)) 23. e4 {[%eval 76,0]} Rfb8 {[%eval 72,0]} 24. Rab1 {[%eval 73,0]} Rb3 {[%eval 71,0] [#] Threatens to win with ...Rxc3.} 25. Qc2 {[%eval 51,0]} c5 {[%eval 61,0]} 26. Kh1 {[%eval 58,0]} R3b4 {[%eval 6,0]} 27. Rg3 {[%eval 58,0][%cal Yg1g3,Yg3f3,Yf3f2][%mdl 32]} c6 {[%eval 65,0]} 28. Qg2 {[%eval 58,0]} Kh8 {[%eval 48,0]} 29. Rf3 {[%eval 5,0]} Kg8 {[%eval 65,0]} 30. Rf2 {[%eval 65,0]} R8b7 {[%eval 66,0]} 31. Rg1 {[%eval 63,0]} Kh7 {[%eval 56,0]} 32. Re1 {[%eval 27,0]} Qg5 {[%eval 18,0]} 33. Ree2 {[%eval 2,0]} Qe5 {[%eval 64,0]} 34. Re3 {[%eval 67,0][%cal Ye2e3,Ye3g3,Yg3f3][%mdl 32]} Qg5 {[%eval 73,0]} 35. Rg3 {[%eval 78,0]} Qe5 {[%eval 76,0]} 36. Rgf3 {[%eval 64,0]} Kg8 {[%eval 69,0]} 37. Rd2 {[%eval 62,0]} Rd4 {[%eval 61,0]} 38. Re2 {[%eval 62,0]} Rbd7 {[%eval 6,0]} 39. Ref2 {[%eval 62,0]} Rd3 {[%eval 58,0]} 40. Rxd3 {[%eval 58,0]} Rxd3 {[%eval 48,0]} 41. Qf1 {[%eval 56,0][%csl Yd3,Yf7]} Rd7 {[%eval 55,0]} 42. Qe2 {[%eval 44,0]} (42. Qa6 {is more complex.} Qg5 43. Qc8+ Rd8 44. Qc7) 42... Rd4 {[%eval 43,0]} 43. Qf3 {[%eval 6,0]} Rd7 {[%eval 6,0]} 44. Kg2 {[%eval 39,0]} f6 {[%eval 49,0]} 45. Qg3 {[%eval 24,0]} Qxg3+ {[%eval 18,0]} 46. hxg3 $14 {[%eval 2,0][%cal Ye4e5][%mdl 4096] Endgame KRN-KR} e5 {[%eval 8,0]} 47. Rc2 {[%eval 15,0]} Rd4 {[%eval 25,0]} 48. Kf3 {[%eval 29,0]} Kf7 {[%eval 43,0]} 49. Rc1 {[%eval 25,0]} h5 {[%eval 23,0]} 50. Nd1 {[%eval 11,0]} Rxa4 {[%eval 35,0]} 51. Ne3 {[%eval 4,0]} Rb4 {[%eval 0,0]} 52. Rxc5 {[%eval 0,0]} Rxb2 {[%eval 0,0]} 53. Rxa5 {[%eval 0,0]} Rb7 {[%eval 0,0]} 54. Ra8 {[%eval 0,0]} Rc7 {[%eval 0,0]} 55. Rh8 {[%eval 0,0]} Kg6 {[%eval 0,0]} 56. Nc4 {[%eval 0,0]} c5 {[%eval 0,0]} 57. Rd8 {[%eval 0,0]} Kg5 {[%eval 0,0]} 58. Rd1 {[%eval 0,0]} Rb7 {[%eval 0,0]} 59. Rc1 {[%eval 0,0]} g6 {[%eval 0,0]} 60. Ne3 {[%eval 0,0]} Rb5 {[%eval 0,0]} 61. Nc4 {[%eval 0,0] Weighted Error Value: White=0.07 (flawless) /Black=0.07 (flawless) Inaccurate: 	White=2 	Black=3 OK: 	White=13 	Black=18 Best: 	White=2 	Black=4 Precisão Stockfish 17: Brancas 99% Pretas 98% Precisão Chess.com: Branas 97.6% Pretas 97.4%} 1/2-1/2

[Event "87th Tata Steel Masters 2025"]
[Site "Wijk aan Zee"]
[Date "2025.01.25"]
[Round "7.3"]
[White "Van Foreest, Jorden"]
[Black "Praggnanandhaa, Rameshbabu"]
[Result "1/2-1/2"]
[ECO "B30"]
[WhiteElo "2680"]
[BlackElo "2741"]
[Annotator "Stockfish 17 - Chessbase"]
[PlyCount "71"]
[EventDate "2025.??.??"]
[TimeControl "60"]

{[%evp 9,71,43,47,43,25,39,43,19,31,27,22,29,32,33,27,20,34,41,23,0,0,0,0,0,0,0,0,0,0,7,4,0,0,0,7,11,14,14,10,0,0,0,16,23,25,0,4,0,9,0,63,42,91,92,93,93,93,93,105,105,113,114,114,104]} 1. e4 {[%eval 18,0] [%emt 0:00:00]} c5 {[%eval 25,0] [%emt 0:00:00]} 2. Nf3 {[%eval 2,0] [%emt 0:00:00]} Nc6 {[%eval 25,0] [%emt 0:00:00]} 3. Nc3 {[%eval 22,0] [%emt 0:00:00]} Nf6 {[%eval 38,0] [%emt 0:00:00]} 4. Bb5 {[%eval 29,0] [%emt 0:00:00]} g6 {[%eval 39,0] [%emt 0:00:00]} 5. e5 {[%eval 51,0] [%emt 0:00:00]} Nh5 {[%eval 43,0] [%emt 0:00:00]} 6. O-O {[%eval 41,0] [%emt 0:00:00] B30: Sicilian: 2...Nc6 3 Bb5, lines without ...g6.} Bg7 {[%eval 4,0] [%emt 0:00:00]} 7. Re1 {[%eval 44,0] [%emt 0:00:00]} Nd4 {[%eval 47,0] [%emt 0:00:00]} 8. d3 {[%eval 81,0] [%emt 0:00:00] [#] White is slightly better.} O-O {[%eval 100,0] [%emt 0:00:00]} 9. g4 {[%eval 69,0] [%emt 0:00:00]} d5 {[%eval 78,0] [%emt 0:00:00]} 10. h3 {[%eval 86,0] [%emt 0:00:00]} a6 {[%eval 76,0] [%emt 0:00:00]} 11. Ba4 {[%eval 82,0] [%emt 0:00:00] A sharp opening} Ne6 {[%eval 71,0] [%emt 0:00:00]} 12. gxh5 {[%eval 86,0] [%emt 0:00:00] [#] and Bb3 should not be overlooked} b5 $1 {[%eval 75,0] [%emt 0:00:00]} 13. Bb3 $146 {[%eval 21,0] [%emt 0:00:00]} (13. h6 Bh8 14. Nxb5 axb5 15. Bxb5 Bb7 16. d4 f6 17. c3 Qb6 18. exf6 Qxb5 19. Rxe6 Bxf6 20. Re1 Qd7 21. Ne5 Bxe5 22. Rxe5 Qxh3 23. Be3 Rf5 24. Rxf5 Qxf5 25. Qf1 e5 26. Qg2 exd4 27. cxd4 Re8 {Babiarz,A (2193)-Hulka,V (2311) Krakow POL 2024 ½-½ (50)}) 13... c4 {[%eval 25,0] [%emt 0:00:00]} 14. h6 {[%eval 28,0] [%emt 0:00:00]} (14. d4 $5) 14... Bh8 {[%eval 27,0] [%emt 0:00:00]} 15. dxc4 $146 {[%eval 28,0] [%emt 0:00:00]} (15. d4 Qd7 16. Nh2 f6 17. f4 fxe5 18. fxe5 cxb3 19. axb3 b4 20. Na4 Qc6 21. Ng4 {½-½ Kulaots,K (2525)-Stremavicius,T (2544) Oslo Kvisla 2023 (5)}) 15... dxc4 {[%eval 27,0] [%emt 0:00:00]} 16. Qxd8 {[%eval 26,0] [%emt 0:00:00]} Rxd8 {[%eval 24,0] [%emt 0:00:00]} 17. Bxc4 {[%eval 29,0] [%emt 0:00:00]} bxc4 {[%eval 26,0] [%emt 0:00:00]} 18. Be3 {[%eval 28,0] [%emt 0:00:00]} Bb7 {[%eval 29,0] [%emt 0:00:00]} 19. Ng5 {[%eval 25,0] [%emt 0:00:00]} Bxe5 {[%eval 2,0] [%emt 0:00:00]} 20. Nxe6 {[%eval 21,0] [%emt 0:00:00]} fxe6 {[%eval 19,0] [%emt 0:00:00]} 21. Bg5 {[%eval 23,0] [%emt 0:00:00][%csl Ye5,Ye7]} Bxc3 {[%eval 37,0] [%emt 0:00:00]} 22. bxc3 {[%eval 33,0] [%emt 0:00:00]} Kf7 {[%eval 32,0] [%emt 0:00:00] Opposite bishops and equal position} 23. Rab1 {[%eval 29,0] [%emt 0:00:00]} Bd5 {[%eval 35,0] [%emt 0:00:00]} 24. Rb6 {[%eval 24,0] [%emt 0:00:00]} Rdb8 {[%eval 25,0] [%emt 0:00:00]} 25. Reb1 {[%eval 16,0] [%emt 0:00:00]} Rxb6 {[%eval 21,0] [%emt 0:00:00]} 26. Rxb6 {[%eval 21,0] [%emt 0:00:00][%mdl 4096] Endgame KRB-KRB} Ke8 {[%eval 24,0] [%emt 0:00:00]} 27. Kf1 {[%eval 22,0] [%emt 0:00:00]} Kd7 {[%eval 23,0] [%emt 0:00:00]} 28. Ke2 {[%eval 24,0] [%emt 0:00:00]} Kc7 {[%eval 18,0] [%emt 0:00:31]} 29. Rb2 {[%eval 11,0] [%emt 0:00:00]} Kc8 {[%eval 24,0]} (29... Kd6) 30. Ke3 {[%eval 26,0]} Rb8 {[%eval 27,0]} (30... Kd7 $14) 31. Rxb8+ $16 {[%eval 3,0] White is better.} Kxb8 {[%eval 26,0]} 32. Kd4 {[%eval 29,0]} Kc7 {[%eval 27,0]} 33. Bxe7 {[%eval 24,0]} Kc6 {[%eval 27,0]} 34. h4 {[%eval 21,0] White is more active.} Bg2 {[%eval 23,0]} 35. a3 {[%eval 2,0]} Bf1 {[%eval 26,0]} 36. Bb4 {[%eval 28,0] Weighted Error Value: White=0.04 (flawless) /Black=0.07 (flawless) Mistake: 	--- 	Black=2 OK: 	White=19 	Black=10 Best: 	White=1 	Black=3 Strong: 	--- 	Black=1 Precisão Stockfish 17: Brancas 98% Pretas 99% Precisão Chess.com: Branas 98.7% Pretas 99.2%} 1/2-1/2

[Event "87th Tata Steel Masters 2025"]
[Site "Wijk aan Zee"]
[Date "2025.01.25"]
[Round "7.4"]
[White "Giri, Anish"]
[Black "Abdusattorov, Nodirbek"]
[Result "1/2-1/2"]
[ECO "A29"]
[WhiteElo "2731"]
[BlackElo "2768"]
[Annotator "Stockfish 17 - Chessbase"]
[PlyCount "61"]
[EventDate "2025.??.??"]
[TimeControl "60"]

{[%evp 16,61,0,-13,16,0,15,-6,17,0,2,-13,12,10,19,16,14,0,4,0,12,0,0,0,0,0,0,0,0,0,0,0,3,0,0,0,0,0,9,4,5,0,8,8,16,0,0,0]} 1. c4 {[%eval 12,0] [%emt 0:00:00]} e5 {[%eval 12,0] [%emt 0:00:00]} 2. g3 {[%eval 14,0] [%emt 0:00:00]} Nf6 {[%eval 15,0] [%emt 0:00:00]} 3. Bg2 {[%eval 11,0] [%emt 0:00:00]} d5 {[%eval 15,0] [%emt 0:00:00]} 4. cxd5 {[%eval 13,0] [%emt 0:00:00]} Nxd5 {[%eval 18,0] [%emt 0:00:00]} 5. Nf3 {[%eval 14,0] [%emt 0:00:00]} Nc6 {[%eval 16,0] [%emt 0:00:00]} 6. O-O {[%eval 15,0] [%emt 0:00:00]} Nb6 {[%eval 18,0] [%emt 0:00:00]} 7. Nc3 {[%eval 14,0] [%emt 0:00:00]} Be7 {[%eval 17,0] [%emt 0:00:00]} 8. Rb1 {[%eval 11,0] [%emt 0:00:00]} O-O {[%eval 22,0] [%emt 0:00:00]} 9. b4 {[%eval 25,0] [%emt 0:00:00] The position is equal.} f6 {[%eval 4,0] [%emt 0:00:00] has lost popularity (9...a6). A29: English Opening: Four Knights Variation with 4 g3.} (9... Bxb4 $6 10. Nxe5 Nxe5 11. Rxb4 $16) 10. d3 {[%eval 7,0] [%emt 0:00:00]} Be6 {[%eval 11,0] [%emt 0:00:00]} 11. b5 {[%eval 8,0] [%emt 0:00:00]} Nd4 {[%eval 16,0] [%emt 0:00:00]} 12. Nd2 {[%eval 8,0] [%emt 0:00:00][%cal Ye2e3]} c6 {[%eval 4,0] [%emt 0:00:00]} 13. bxc6 {[%eval 1,0] [%emt 0:00:00]} Nxc6 {[%eval 2,0] [%emt 0:00:00]} 14. Nc4 $146 {[%eval 17,0] [%emt 0:00:00]} (14. Nf3 Qd7 15. Be3 Nd5 16. Nxd5 Bxd5 17. Qa4 (17. a4 Rac8 18. Rb5 Bf7 19. Qb1 {½-½ (19) Movsesian,S (2709)-Ragger,M (2572) Rijeka 2010}) 17... b6 18. Rfc1 Rac8 19. Nd2 Bxg2 20. Kxg2 Qd5+ 21. f3 Rfd8 22. Qc4 Qxc4 23. Nxc4 Nd4 24. Bxd4 Rxd4 25. a4 Rd5 26. Rc3 Rdc5 27. Rcb3 R8c7 28. Rb5 Rxb5 {Saldano Dayer,H (2451)-Fernandez Barrera,V (2204) Albacete 2007 ½-½ (78)}) 14... Nxc4 {[%eval 16,0] [%emt 0:00:00]} 15. dxc4 {[%eval 2,0] [%emt 0:00:00]} Qxd1 {[%eval 18,0] [%emt 0:00:00]} 16. Rxd1 {[%eval 21,0] [%emt 0:00:00]} Rab8 {[%eval 21,0] [%emt 0:00:00]} 17. Nd5 {[%eval 0,0] [%emt 0:00:00]} Kf7 {[%eval 1,0] [%emt 0:00:00]} 18. Be3 {[%eval 1,0] [%emt 0:00:00]} Rfd8 {[%eval 3,0] [%emt 0:00:00]} 19. f4 {[%eval 0,0] [%emt 0:00:00]} exf4 {[%eval 3,0] [%emt 0:00:00]} 20. gxf4 {[%eval 5,0] [%emt 0:00:00]} Bf5 {[%eval 11,0]} 21. Rb5 {[%eval 1,0] [%emt 0:00:00]} a6 {[%eval 0,0]} 22. Rb6 {[%eval 2,0] [%emt 0:00:00]} Na5 {[%eval 25,0]} 23. Rc1 {[%eval 32,0] [%emt 0:00:00] Black should prevent Nxe7.} Bf8 {[%eval 24,0]} 24. Bf2 {[%eval 28,0]} Re8 {[%eval 47,0]} 25. Bf3 {[%eval 18,0]} Rbc8 {[%eval 45,0][%cal Yf5e4] Repels Nc7} 26. c5 {[%eval 1,0]} Kg8 {[%eval 35,0] Black is weak on the dark squares} 27. Kg2 {[%eval 16,0][%cal Yg1g2,Yg2g3,Yg3f3][%mdl 32]} Be4 $1 {[%eval 14,0]} 28. h4 {[%eval 17,0]} h5 {[%eval 17,0]} 29. Kg3 {[%eval 8,0]} f5 {[%eval 9,0]} 30. Nb4 {[%eval 0,0]} Bxf3 {[%eval 0,0]} 31. Kxf3 {[%eval 3,0] An interesting draw. Weighted Error Value: White=0.05 (flawless) /Black=0.04 (flawless) OK: 	White=10 	Black=10 Best: 	--- 	Black=2 Strong: 	--- 	Black=1 Precisão Stockfish 17: Brancas 97% Pretas 98% Precisão Chess.com: Branas 97.9% Pretas 98.1%} 1/2-1/2